fUST/lending_fUST_20250523
["ID","MTS","AMOUNT","RATE_DAILY","PERIOD"]
[362119324,1748003464921,-430.0,0.00020761,2]
[362119325,1748003464931,-347.12367049,0.00020761,2]
[362119326,1748003464939,-363.16851241,0.00020761,2]
[362119327,1748003464949,-360.80504395,0.00020761,2]
[362119328,1748003464959,-365.97458137,0.00020761,2]
[362119329,1748003464968,-361.61042121,0.00020761,2]
[362119330,1748003464979,-367.51990722,0.00020761,2]
[362119331,1748003464988,-164.83445518,0.00020761,2]
[362119332,1748003464998,-459.47223641,0.00020761,2]
[362119333,1748003465007,-500.0,0.00020776,2]
[362119334,1748003465017,-485.59997574,0.00020797,4]
[362119335,1748003465026,-575.21,0.00020812,2]
[362119336,1748003465036,-326.50548235,0.00020812,2]
[362119337,1748003465047,-103.49451765,0.00020812,2]
[362119338,1748003465057,-430.0,0.00020812,2]
[362119339,1748003465067,-1064.45,0.00020812,2]
[362119340,1748003465077,-430.0,0.00020812,2]
[362119341,1748003465087,-430.0,0.00020812,2]
[362119342,1748003465098,-430.0,0.00020812,2]
[362119343,1748003465108,-1011.58,0.00020812,2]
[362119344,1748003465118,-430.0,0.00020812,2]
[362119345,1748003465129,-430.0,0.00020812,2]
[362119346,1748003465138,-430.0,0.00020813,2]
[362119347,1748003465147,-964.4,0.00020813,2]
[362119348,1748003465158,-430.0,0.00020813,2]
[362119349,1748003465171,-826.88,0.00020813,2]
[362119350,1748003465181,-430.0,0.00020813,2]
[362119351,1748003465191,-430.0,0.00020813,2]
[362119352,1748003465200,-430.0,0.00020813,2]
[362119353,1748003465211,-430.0,0.00020813,2]
[362119354,1748003465221,-430.0,0.00020813,2]
[362119355,1748003465231,-430.0,0.00020813,2]
[362119356,1748003465241,-430.0,0.00020813,2]
[362119357,1748003465252,-430.0,0.00020813,2]
[362119358,1748003465263,-430.0,0.00020813,2]
[362119359,1748003465274,-430.0,0.00020813,2]
[362119360,1748003465284,-430.0,0.00020813,2]
[362119361,1748003465294,-225.00635675,0.00020986,2]
[362119362,1748003465304,-430.0,0.00020986,2]
[362119363,1748003465314,-430.0,0.00020986,2]
[362119364,1748003465323,-151.0,0.00020999,2]
[362119365,1748003465333,-430.0,0.00020999,2]
[362119366,1748003465343,-430.0,0.00020999,2]
[362119367,1748003465353,-430.0,0.00020999,2]
[362119368,1748003465362,-440.87903886,0.00020999,2]
[362119369,1748003465372,-430.0,0.00020999,2]
[362119370,1748003465382,-430.0,0.00020999,2]
[362119371,1748003465392,-430.0,0.00020999,2]
[362119372,1748003465401,-430.0,0.00021009,2]
[362119373,1748003465411,-430.0,0.00021009,2]
[362119374,1748003465423,-430.0,0.00021009,2]
[362119375,1748003465432,-430.0,0.00021009,2]
[362119376,1748003465442,-430.0,0.00021009,2]
[362119377,1748003465452,-430.0,0.00021009,2]
[362119378,1748003465461,-430.0,0.00021009,2]
[362119379,1748003465470,-430.0,0.00021009,2]
[362119380,1748003465480,-324.27599593,0.00021009,2]
[362119381,1748003465489,-430.0,0.00021009,2]
[362119382,1748003465499,-471.97075489,0.0002101,2]
[362119383,1748003465509,-445.7419247,0.0002101,2]
[362119384,1748003465519,-421.30642643,0.0002101,2]
[362119385,1748003465528,-430.0,0.0002101,2]
[362119386,1748003465538,-307.12383123,0.0002101,2]
[362119387,1748003465547,-313.53431344,0.0002101,2]
[362119388,1748003465557,-430.0,0.0002101,2]
[362119389,1748003465567,-430.0,0.0002101,2]
[362119390,1748003465576,-430.0,0.0002101,2]
[362119391,1748003465586,-428.4740742,0.0002101,2]
[362119392,1748003465596,-430.0,0.0002101,2]
[362119393,1748003465605,-320.7734249,0.0002101,2]
[362119394,1748003465615,-430.0,0.0002101,2]
[362119395,1748003465625,-243.93944327,0.0002101,2]
[362119396,1748003465635,-430.0,0.0002101,2]
[362119397,1748003465645,-430.0,0.0002101,2]
[362119398,1748003465655,-430.0,0.0002101,2]
[362119399,1748003465668,-430.0,0.0002101,2]
[362119400,1748003465677,-430.0,0.0002101,2]
[362119401,1748003465687,-430.0,0.0002101,2]
[362119402,1748003465697,-430.0,0.0002101,2]
[362119403,1748003465706,-430.0,0.0002101,2]
[362119404,1748003465716,-430.0,0.0002101,2]
[362119405,1748003465725,-326.14536547,0.0002101,2]
[362119406,1748003465735,-430.0,0.0002101,2]
[362119407,1748003465745,-430.0,0.0002101,2]
[362119408,1748003465755,-481.53,0.0002101,2]
[362119409,1748003465764,-308.95582234,0.0002101,2]
[362119410,1748003465774,-207.78292654,0.0002101,2]
[362119411,1748003465787,-222.21707346,0.0002101,2]
[362119412,1748003465797,-430.0,0.0002101,2]
[362119413,1748003465806,-430.0,0.0002101,2]
[362119414,1748003465816,-430.0,0.0002101,2]
[362119415,1748003465826,-430.0,0.0002101,2]
[362119416,1748003465835,-430.0,0.0002101,2]
[362119417,1748003465845,-270.33100539,0.0002101,2]
[362119418,1748003465855,-430.0,0.0002101,2]
[362119419,1748003465865,-236.65073307,0.0002101,2]
[362119420,1748003465875,-430.0,0.0002101,2]
[362119421,1748003465884,-430.0,0.0002101,2]
[362119422,1748003465894,-430.0,0.0002101,2]
[362119423,1748003465903,-430.0,0.0002101,2]
[362119424,1748003465915,-430.0,0.0002101,2]
[362119425,1748003465925,-430.0,0.0002101,2]
[362119426,1748003465935,-430.0,0.0002101,2]
[362119427,1748003465945,-541.63,0.0002101,2]
[362119428,1748003465955,-327.24,0.0002101,2]
[362119429,1748003465964,-430.0,0.0002101,2]
[362119430,1748003465974,-430.0,0.0002101,2]
[362119431,1748003465984,-430.0,0.0002101,2]
[362119432,1748003465995,-531.78,0.0002101,2]
[362119433,1748003466004,-454.99362954,0.0002101,2]
[362119434,1748003466015,-430.0,0.00021016,2]
[362119435,1748003466024,-430.0,0.00021016,2]
[362119436,1748003466034,-430.0,0.00021016,2]
[362119437,1748003466043,-356.45,0.00021016,2]
[362119438,1748003466053,-430.0,0.00021016,2]
[362119439,1748003466063,-430.0,0.00021016,2]
[362119440,1748003466072,-811.46,0.00021016,2]
[362119441,1748003466082,-430.0,0.00021016,2]
[362119442,1748003466091,-430.0,0.00021016,2]
[362119443,1748003466101,-430.0,0.00021016,2]
[362119444,1748003466111,-317.84,0.00021016,2]
[362119445,1748003466120,-504.18,0.00021016,2]
[362119446,1748003466130,-290.48,0.00021016,2]
[362119447,1748003466140,-430.0,0.00021016,2]
[362119448,1748003466150,-151.19129921,0.00021016,2]
[362119449,1748003466161,-430.0,0.00021016,2]
[362119450,1748003466176,-430.0,0.00021016,2]
[362119451,1748003466186,-430.0,0.00021016,2]
[362119452,1748003466196,-577.75,0.00021016,2]
[362119453,1748003466207,-430.0,0.00021016,2]
[362119454,1748003466216,-430.0,0.00021016,2]
[362119455,1748003466226,-430.0,0.00021016,2]
[362119456,1748003466236,-475.22,0.00021016,2]
[362119457,1748003466247,-430.0,0.00021016,2]
[362119458,1748003466258,-467.83,0.00021016,2]
[362119459,1748003466268,-430.0,0.00021016,2]
[362119460,1748003466277,-430.0,0.00021034,2]
[362119461,1748003466287,-430.0,0.00021035,2]
[362119462,1748003466297,-430.0,0.00021035,2]
[362119463,1748003466307,-430.0,0.00021035,2]
[362119464,1748003466316,-57.94206288,0.00021035,2]
[362119465,1748003466445,-430.0,0.0001999,2]
[362119466,1748003466455,-430.0,0.00020462,2]
[362119467,1748003466465,-213.0017251,0.00020736,2]
[362119468,1748003466475,-372.05793712,0.00021035,2]
[362119469,1748003466484,-430.0,0.00021035,2]
[362119470,1748003466494,-430.0,0.00021035,2]
[362119471,1748003466504,-430.0,0.00021035,2]
[362119472,1748003466513,-430.0,0.00021035,2]
[362119473,1748003466523,-430.0,0.00021035,2]
[362119474,1748003466533,-430.0,0.00021035,2]
[362119475,1748003466543,-375.0697666,0.00021035,2]
[362119476,1748003466553,-430.0,0.00021035,2]
[362119477,1748003466563,-430.0,0.00021035,2]
[362119478,1748003466572,-430.0,0.00021035,2]
[362119479,1748003466583,-430.0,0.00021035,2]
[362119480,1748003466592,-485.59997574,0.00021038,4]
[362119481,1748003466601,-500.0,0.00021038,2]
[362119482,1748003466611,-430.0,0.00021086,2]
[362119483,1748003466621,-430.0,0.00021086,2]
[362119484,1748003466631,-1064.45,0.00021086,2]
[362119485,1748003466641,-430.0,0.00021086,2]
[362119486,1748003466651,-519.7,0.00021086,2]
[362119487,1748003466662,-430.0,0.00021086,2]
[362119488,1748003466676,-1011.58,0.00021086,2]
[362119489,1748003466687,-430.0,0.00021086,2]
[362119490,1748003466698,-430.0,0.00021086,2]
[362119491,1748003466712,-964.4,0.00021087,2]
[362119492,1748003466722,-430.0,0.00021087,2]
[362119493,1748003466732,-826.88,0.00021087,2]
[362119494,1748003466742,-430.0,0.00021087,2]
[362119495,1748003466752,-430.0,0.00021087,2]
[362119496,1748003466761,-430.0,0.00021087,2]
[362119497,1748003466771,-430.0,0.00021087,2]
[362119498,1748003466781,-430.0,0.00021087,2]
[362119499,1748003466790,-430.0,0.00021087,2]
[362119500,1748003466800,-430.0,0.00021087,2]
[362119501,1748003466809,-430.0,0.00021087,2]
[362119502,1748003466819,-430.0,0.00021087,2]
[362119503,1748003466828,-430.0,0.00021087,2]
[362119504,1748003466838,-169.16,0.00021087,2]
[362119505,1748003466848,-2685.87695844,0.0002115,2]
[362119506,1748003466861,-513.52304156,0.0002115,2]
[362119507,1748003466870,-1642.84473204,0.0002115,2]
[362119508,1748003466965,-1556.55526796,0.0002115,2]
[362119509,1748003466975,-3199.4,0.0002115,2]
[362119510,1748003466985,-430.0,0.00021273,2]
[362119511,1748003466995,-449.98700086,0.00021273,2]
[362119512,1748003467005,-207.54753458,0.00021273,2]
[362119513,1748003467015,-430.0,0.00021273,2]
[362119514,1748003467025,-430.0,0.00021273,2]
[362119515,1748003467036,-362.35609535,0.00021273,2]
[362119516,1748003467046,-485.59997574,0.00021279,5]
[362119517,1748003467055,-430.0,0.00021283,2]
[362119518,1748003467065,-430.0,0.00021283,2]
[362119519,1748003467075,-430.0,0.00021283,2]
[362119520,1748003467085,-430.0,0.00021283,2]
[362119521,1748003467095,-430.0,0.00021283,2]
[362119522,1748003467105,-430.0,0.00021283,2]
[362119523,1748003467115,-287.00116811,0.00021283,2]
[362119524,1748003467125,-286.0858518,0.00021283,2]
[362119525,1748003467134,-430.0,0.00021284,2]
[362119526,1748003467144,-434.15660584,0.00021284,2]
[362119527,1748003467154,-200.62213369,0.00021284,2]
[362119528,1748003467169,-219.52576777,0.00021284,2]
[362119529,1748003467179,-430.0,0.00021284,2]
[362119530,1748003467188,-430.0,0.00021284,2]
[362119531,1748003467198,-430.0,0.00021284,2]
[362119532,1748003467210,-326.35599848,0.00021284,2]
[362119533,1748003467220,-430.0,0.00021284,2]
[362119534,1748003467230,-438.64760731,0.00021284,2]
[362119535,1748003467241,-430.0,0.00021284,2]
[362119536,1748003467252,-430.0,0.00021284,2]
[362119537,1748003467261,-430.0,0.00021284,2]
[362119538,1748003467271,-430.0,0.00021284,2]
[362119539,1748003467282,-430.0,0.00021284,2]
[362119540,1748003467291,-197.43,0.00021284,2]
[362119541,1748003467302,-430.0,0.00021284,2]
[362119542,1748003467312,-218.89353558,0.00021284,2]
[362119543,1748003467323,-293.94700045,0.00021284,2]
[362119544,1748003467333,-430.0,0.00021284,2]
[362119545,1748003467343,-371.29696724,0.00021284,2]
[362119546,1748003467352,-430.0,0.00021284,2]
[362119547,1748003467363,-430.0,0.00021284,2]
[362119548,1748003467372,-477.74806111,0.00021284,2]
[362119549,1748003467382,-430.0,0.00021284,2]
[362119550,1748003467392,-514.98482602,0.00021284,2]
[362119551,1748003467401,-432.38763229,0.00021284,2]
[362119552,1748003467411,-430.0,0.00021284,2]
[362119553,1748003467425,-430.0,0.00021284,2]
[362119554,1748003467436,-430.63315128,0.00021284,2]
[362119555,1748003467446,-430.0,0.00021284,2]
[362119556,1748003467457,-430.0,0.00021284,2]
[362119557,1748003467467,-430.0,0.00021284,2]
[362119558,1748003467477,-430.0,0.0002129,2]
[362119559,1748003467487,-430.0,0.0002129,2]
[362119560,1748003467501,-430.0,0.0002129,2]
[362119561,1748003467511,-811.46,0.0002129,2]
[362119562,1748003467521,-300.51286183,0.0002129,2]
[362119563,1748003467532,-430.0,0.0002129,2]
[362119564,1748003467542,-187.05608057,0.0002129,2]
[362119565,1748003467552,-430.0,0.0002129,2]
[362119566,1748003467562,-430.0,0.0002129,2]
[362119567,1748003467572,-430.0,0.0002129,2]
[362119568,1748003467582,-430.0,0.0002129,2]
[362119569,1748003467592,-577.75,0.0002129,2]
[362119570,1748003467602,-430.0,0.0002129,2]
[362119571,1748003467611,-430.0,0.0002129,2]
[362119572,1748003467622,-381.16,0.0002129,2]
[362119573,1748003467631,-430.0,0.0002129,2]
[362119574,1748003467642,-467.83,0.0002129,2]
[362119575,1748003467651,-430.0,0.0002129,2]
[362119576,1748003467662,-160.0,0.00021308,2]
[362119577,1748003467674,-507.93830376,0.00021308,2]
[362119578,1748003467684,-330.0,0.00021309,2]
[362119579,1748003467694,-430.0,0.00021309,2]
[362119580,1748003467704,-430.0,0.00021309,2]
[362119581,1748003467716,-430.0,0.00021309,2]
[362119582,1748003467725,-562.57172753,0.00021309,2]
[362119583,1748003467735,-176.7507858,0.00021309,2]
[362119584,1748003467745,-430.0,0.00021309,2]
[362119585,1748003467896,-430.0,0.00021309,2]
[362119586,1748003467906,-430.0,0.00021309,2]
[362119587,1748003467918,-430.0,0.00021309,2]
[362119588,1748003467927,-430.0,0.00021309,2]
[362119589,1748003467937,-430.0,0.00021309,2]
[362119590,1748003467947,-430.0,0.00021309,2]
[362119591,1748003467956,-503.9,0.00021309,2]
[362119592,1748003467970,-154.899161,0.00021309,2]
[362119593,1748003467980,-430.0,0.0002136,2]
[362119594,1748003467989,-430.0,0.0002136,2]
[362119595,1748003467999,-1064.45,0.0002136,2]
[362119596,1748003468009,-430.0,0.0002136,2]
[362119597,1748003468019,-430.0,0.0002136,2]
[362119598,1748003468028,-1011.58,0.0002136,2]
[362119599,1748003468038,-430.0,0.0002136,2]
[362119600,1748003468048,-529.29353765,0.0002136,2]
[362119601,1748003468058,-964.4,0.00021361,2]
[362119602,1748003468068,-826.88,0.00021361,2]
[362119603,1748003468079,-430.0,0.00021361,2]
[362119604,1748003468089,-430.0,0.00021361,2]
[362119605,1748003468098,-430.0,0.00021361,2]
[362119606,1748003468108,-430.0,0.00021361,2]
[362119607,1748003468118,-430.0,0.00021361,2]
[362119608,1748003468128,-200.31,0.00021361,2]
[362119609,1748003468137,-430.0,0.00021361,2]
[362119610,1748003468147,-575.35,0.00021361,2]
[362119611,1748003468156,-430.0,0.00021361,2]
[362119612,1748003468168,-248.15,0.00021361,2]
[362119613,1748003468180,-485.59997574,0.00021521,5]
[362119614,1748003468190,-180.0769539,0.00021547,2]
[362119615,1748003468200,-496.83372662,0.00021547,2]
[362119616,1748003468210,-430.0,0.00021547,2]
[362119617,1748003468219,-450.0,0.00021557,2]
[362119618,1748003468229,-303.44654473,0.00021557,2]
[362119619,1748003468239,-430.0,0.00021557,2]
[362119620,1748003468251,-430.0,0.00021557,2]
[362119621,1748003468262,-427.65169584,0.00021558,2]
[362119622,1748003468271,-430.0,0.00021558,2]
[362119623,1748003468281,-300.35,0.00021558,2]
[362119624,1748003468291,-430.0,0.00021558,2]
[362119625,1748003468301,-330.21272539,0.00021558,2]
[362119626,1748003468311,-406.12501094,0.00021558,2]
[362119627,1748003468320,-402.11731761,0.00021558,2]
[362119628,1748003468331,-430.0,0.00021558,2]
[362119629,1748003468341,-418.4671961,0.00021558,2]
[362119630,1748003468350,-430.0,0.00021558,2]
[362119631,1748003468360,-430.0,0.00021558,2]
[362119632,1748003468370,-367.82678421,0.00021558,2]
[362119633,1748003468380,-430.0,0.00021558,2]
[362119634,1748003468389,-182.27,0.00021558,2]
[362119635,1748003468398,-430.0,0.00021558,2]
[362119636,1748003468408,-430.0,0.00021558,2]
[362119637,1748003468418,-430.0,0.00021558,2]
[362119638,1748003468428,-430.0,0.00021558,2]
[362119639,1748003468437,-430.0,0.00021564,2]
[362119640,1748003468446,-430.0,0.00021564,2]
[362119641,1748003468455,-278.8,0.00021564,2]
[362119642,1748003468465,-811.46,0.00021564,2]
[362119643,1748003468476,-537.96,0.00021564,2]
[362119644,1748003468487,-515.63,0.00021564,2]
[362119645,1748003468498,-430.0,0.00021564,2]
[362119646,1748003468509,-430.0,0.00021564,2]
[362119647,1748003468519,-430.0,0.00021564,2]
[362119648,1748003468528,-577.75,0.00021564,2]
[362119649,1748003468542,-430.0,0.00021564,2]
[362119650,1748003468556,-430.0,0.00021564,2]
[362119651,1748003468567,-430.0,0.00021564,2]
[362119652,1748003468576,-467.83,0.00021564,2]
[362119653,1748003468586,-430.0,0.00021564,2]
[362119654,1748003468597,-430.0,0.00021583,2]
[362119655,1748003468611,-430.0,0.00021583,2]
[362119656,1748003468622,-430.0,0.00021583,2]
[362119657,1748003468632,-430.0,0.00021583,2]
[362119658,1748003468642,-430.0,0.00021583,2]
[362119659,1748003468653,-430.0,0.00021583,2]
[362119660,1748003468662,-430.0,0.00021583,2]
[362119661,1748003468672,-430.0,0.00021583,2]
[362119662,1748003468682,-430.0,0.00021583,2]
[362119663,1748003468692,-430.0,0.00021583,2]
[362119664,1748003468702,-578.8,0.00021634,2]
[362119665,1748003468712,-225.09,0.00021634,2]
[362119666,1748003468722,-1064.45,0.00021634,2]
[362119667,1748003468732,-430.0,0.00021634,2]
[362119668,1748003468742,-492.28737344,0.00021634,2]
[362119669,1748003468751,-1011.58,0.00021634,2]
[362119670,1748003468761,-430.0,0.00021634,2]
[362119671,1748003468770,-964.4,0.00021635,2]
[362119672,1748003468780,-826.88,0.00021635,2]
[362119673,1748003468789,-430.0,0.00021635,2]
[362119674,1748003468799,-430.0,0.00021635,2]
[362119675,1748003468809,-491.81675987,0.00021635,2]
[362119676,1748003468818,-430.0,0.00021635,2]
[362119677,1748003468828,-382.98530746,0.00021635,2]
[362119678,1748003468838,-430.0,0.00021635,2]
[362119679,1748003468848,-430.0,0.00021635,2]
[362119680,1748003468857,-823.0,0.00021644,2]
[362119681,1748003468867,-295.694,0.00021692,2]
[362119682,1748003468876,-485.59997574,0.00021762,5]
[362119683,1748003468886,-430.0,0.00021821,2]
[362119684,1748003468896,-474.62,0.00021832,2]
[362119685,1748003468908,-430.0,0.00021832,2]
[362119686,1748003468919,-208.90518167,0.00021832,2]
[362119687,1748003468929,-566.69189843,0.00021832,2]
[362119688,1748003468939,-165.67268473,0.00021832,2]
[362119689,1748003468950,-430.0,0.00021832,2]
[362119690,1748003468960,-430.0,0.00021832,2]
[362119691,1748003468970,-430.0,0.00021832,2]
[362119692,1748003468980,-430.0,0.00021832,2]
[362119693,1748003468991,-167.84,0.00021838,2]
[362119694,1748003469001,-420.19,0.00021838,2]
[362119695,1748003469010,-811.46,0.00021838,2]
[362119696,1748003469020,-430.0,0.00021838,2]
[362119697,1748003469030,-430.0,0.00021838,2]
[362119698,1748003469040,-430.0,0.00021838,2]
[362119699,1748003469050,-577.75,0.00021838,2]
[362119700,1748003469060,-430.0,0.00021838,2]
[362119701,1748003469071,-290.11,0.00021838,2]
[362119702,1748003469080,-430.0,0.00021838,2]
[362119703,1748003469092,-467.83,0.00021838,2]
[362119704,1748003469101,-205.2,0.00021838,2]
[362119705,1748003469111,-257.1871704,0.00021857,2]
[362119706,1748003469122,-430.0,0.00021857,2]
[362119707,1748003469131,-430.0,0.00021857,2]
[362119708,1748003469141,-430.0,0.00021857,2]
[362119709,1748003469151,-430.0,0.00021857,2]
[362119710,1748003469164,-430.0,0.00021857,2]
[362119711,1748003469175,-430.0,0.00021857,2]
[362119712,1748003469185,-430.0,0.00021857,2]
[362119713,1748003469195,-430.0,0.00021857,2]
[362119714,1748003469206,-430.0,0.00021857,2]
[362119715,1748003469216,-1064.45,0.00021908,2]
[362119716,1748003469226,-430.0,0.00021908,2]
[362119717,1748003469236,-1011.58,0.00021908,2]
[362119718,1748003469247,-294.03,0.00021908,2]
[362119719,1748003469259,-964.4,0.00021909,2]
[362119720,1748003469269,-826.88,0.00021909,2]
[362119721,1748003469278,-430.0,0.00021909,2]
[362119722,1748003469288,-559.06269682,0.00021909,2]
[362119723,1748003469297,-430.0,0.00021909,2]
[362119724,1748003469307,-430.0,0.00021909,2]
[362119725,1748003469316,-5000.0,0.00021917,2]
[362119726,1748003469326,-5000.0,0.00021917,2]
[362119727,1748003469335,-5000.0,0.00021917,2]
[362119728,1748003469345,-5000.0,0.00021917,2]
[362119729,1748003469355,-5000.0,0.00021917,2]
[362119730,1748003469365,-500.0,0.00021917,2]
[362119731,1748003469375,-200.0,0.00021917,2]
[362119732,1748003469385,-430.0,0.00021917,2]
[362119733,1748003469394,-430.0,0.00021917,2]
[362119734,1748003469404,-332.89619849,0.00021917,2]
[362119735,1748003469414,-500.0,0.00021917,2]
[362119736,1748003469424,-598.62260868,0.00021917,2]
[362119737,1748003469435,-500.0,0.00021918,2]
[362119738,1748003469445,-500.0,0.00021918,2]
[362119739,1748003469455,-500.0,0.00021918,2]
[362119740,1748003469465,-500.0,0.00021918,2]
[362119741,1748003469475,-500.0,0.00021918,2]
[362119742,1748003469485,-500.0,0.00021918,2]
[362119743,1748003469495,-500.0,0.00021918,2]
[362119744,1748003469506,-507.57612017,0.00021918,2]
[362119745,1748003469515,-500.0,0.00021918,2]
[362119746,1748003469526,-500.0,0.00021918,2]
[362119747,1748003469536,-657.93992306,0.00021918,2]
[362119748,1748003469546,-657.93992306,0.00021918,2]
[362119749,1748003469555,-657.93992306,0.00021918,2]
[362119750,1748003469565,-657.93992306,0.00021918,2]
[362119751,1748003469575,-657.93992306,0.00021918,2]
[362119752,1748003469584,-657.93992306,0.00021918,2]
[362119753,1748003469594,-657.93992306,0.00021918,2]
[362119754,1748003469604,-657.93992306,0.00021918,2]
[362119755,1748003469614,-657.93992306,0.00021918,2]
[362119756,1748003469625,-657.93992306,0.00021918,2]
[362119757,1748003469635,-657.93992306,0.00021918,2]
[362119758,1748003469645,-657.93992306,0.00021918,2]
[362119759,1748003469655,-701.8025846,0.00021918,2]
[362119760,1748003469667,-701.8025846,0.00021918,2]
[362119761,1748003469677,-701.8025846,0.00021918,2]
[362119762,1748003469687,-701.8025846,0.00021918,2]
[362119763,1748003469698,-701.8025846,0.00021918,2]
[362119764,1748003469708,-701.8025846,0.00021918,2]
[362119765,1748003469719,-156.0,0.00022,2]
[362119766,1748003469729,-170.0,0.00022,2]
[362119767,1748003469739,-485.59997574,0.00022003,6]
[362119768,1748003469749,-363.32,0.00022095,2]
[362119769,1748003469759,-430.0,0.00022106,2]
[362119770,1748003469769,-430.0,0.00022106,2]
[362119771,1748003469779,-419.52,0.00022106,2]
[362119772,1748003469789,-430.0,0.00022106,2]
[362119773,1748003469800,-811.46,0.00022112,2]
[362119774,1748003469810,-430.0,0.00022112,2]
[362119775,1748003469820,-430.0,0.00022112,2]
[362119776,1748003469830,-420.27,0.00022112,2]
[362119777,1748003469840,-577.75,0.00022112,2]
[362119778,1748003469850,-430.0,0.00022112,2]
[362119779,1748003469860,-430.0,0.00022112,2]
[362119780,1748003469870,-467.83,0.00022112,2]
[362119781,1748003469880,-430.0,0.00022131,2]
[362119782,1748003469890,-450.0,0.00022131,2]
[362119783,1748003469899,-430.0,0.00022131,2]
[362119784,1748003469909,-430.0,0.00022131,2]
[362119785,1748003469920,-430.0,0.00022131,2]
[362119786,1748003469930,-430.0,0.00022131,2]
[362119787,1748003469939,-430.0,0.00022131,2]
[362119788,1748003469949,-430.0,0.00022131,2]
[362119789,1748003469959,-176.31,0.00022131,2]
[362119790,1748003469969,-1064.45,0.00022182,2]
[362119791,1748003469979,-430.0,0.00022182,2]
[362119792,1748003469988,-1011.58,0.00022182,2]
[362119793,1748003469998,-964.4,0.00022183,2]
[362119794,1748003470007,-826.88,0.00022183,2]
[362119795,1748003470017,-430.0,0.00022183,2]
[362119796,1748003470027,-509.14010189,0.00022183,2]
[362119797,1748003470038,-430.0,0.00022183,2]
[362119798,1748003470048,-200.0,0.00022191,30]
[362119799,1748003470058,-485.59997574,0.00022245,6]
[362119800,1748003470067,-613.0,0.0002234,2]
[362119801,1748003470078,-430.0,0.0002238,2]
[362119802,1748003470088,-403.02,0.0002238,2]
[362119803,1748003470099,-564.74,0.0002238,2]
[362119804,1748003470109,-811.46,0.00022386,2]
[362119805,1748003470120,-430.0,0.00022386,2]
[362119806,1748003470130,-430.0,0.00022386,2]
[362119807,1748003470140,-577.75,0.00022386,2]
[362119808,1748003470151,-430.0,0.00022386,2]
[362119809,1748003470162,-430.0,0.00022386,2]
[362119810,1748003470178,-467.83,0.00022386,2]
[362119811,1748003470188,-430.0,0.00022405,2]
[362119812,1748003470198,-153.64835417,0.00022405,2]
[362119813,1748003470209,-430.0,0.00022405,2]
[362119814,1748003470220,-430.0,0.00022405,2]
[362119815,1748003470230,-430.0,0.00022405,2]
[362119816,1748003470240,-523.21392208,0.00022405,2]
[362119817,1748003470252,-1064.45,0.00022456,2]
[362119818,1748003470262,-430.0,0.00022456,2]
[362119819,1748003470273,-1011.58,0.00022456,2]
[362119820,1748003470284,-964.4,0.00022457,2]
[362119821,1748003470294,-826.88,0.00022457,2]
[362119822,1748003470303,-430.0,0.00022457,2]
[362119823,1748003470314,-430.0,0.00022457,2]